fUST/lending_fUST_20250306
["ID","MTS","AMOUNT","RATE_DAILY","PERIOD"]
[355478237,1741198250655,-500.0,0.0003863,9]
[355478239,1741198250665,-783.5,0.0003863,9]
[355478241,1741198250674,-500.0,0.0003863,9]
[355478242,1741198250684,-500.0,0.0003863,9]
[355478244,1741198250693,-727.09,0.0003863,9]
[355478246,1741198250702,-4006.43,0.0003863,9]
[355478248,1741198250711,-758.44,0.0003863,9]
[355478250,1741198250724,-224.20510796,0.0003863,9]
[355478252,1741198250734,-1163.07,0.0003863,9]
[355478254,1741198250743,-500.0,0.0003863,9]
[355478256,1741198250753,-1213.85,0.0003863,9]
[355478258,1741198250762,-500.0,0.0003863,9]
[355478260,1741198250772,-500.0,0.0003863,9]
[355478262,1741198250782,-975.73,0.0003863,9]
[355478264,1741198250791,-500.0,0.0003863,9]
[355478266,1741198250801,-500.0,0.0003863,9]
[355478268,1741198250810,-1668.8,0.0003863,9]
[355478270,1741198250819,-500.0,0.0003863,9]
[355478272,1741198250828,-500.0,0.0003863,9]
[355478274,1741198250837,-500.0,0.0003863,9]
[355478276,1741198250847,-750.41,0.0003863,9]
[355478278,1741198250856,-716.34,0.0003863,9]
[355478280,1741198250867,-500.0,0.0003863,9]
[355478282,1741198250877,-500.0,0.0003863,9]
[355478284,1741198250886,-500.0,0.0003863,9]
[355478286,1741198250896,-500.0,0.0003863,9]
[355478288,1741198250905,-500.0,0.0003863,9]
[355478290,1741198250915,-12795.82,0.0003863,9]
[355478292,1741198250924,-501.61470549,0.0003863,9]
[355478294,1741198250934,-500.0,0.0003863,9]
[355478296,1741198250943,-500.0,0.0003863,9]
[355478298,1741198250952,-500.0,0.0003863,9]
[355478300,1741198250962,-352.24032213,0.0003863,9]
[355478302,1741198250972,-503.42971862,0.0003863,9]
[355478304,1741198250982,-500.0,0.0003863,9]
[355478306,1741198250991,-500.0,0.0003863,9]
[355478308,1741198251003,-500.0,0.0003863,9]
[355478310,1741198251013,-500.0,0.0003863,9]
[355478312,1741198251022,-500.0,0.0003863,9]
[355478314,1741198251032,-10119.18,0.0003863,9]
[355478316,1741198251041,-2441.88,0.0003863,9]
[355478318,1741198251050,-524.27,0.0003863,9]
[355478320,1741198251059,-500.0,0.0003863,9]
[355478321,1741198251069,-500.0,0.0003863,9]
[355478322,1741198251079,-500.0,0.0003863,9]
[355478324,1741198251088,-1356.54,0.0003863,9]
[355478326,1741198251098,-500.0,0.0003863,9]
[355478328,1741198251107,-500.0,0.0003863,9]
[355478330,1741198251117,-500.0,0.0003863,9]
[355478332,1741198251127,-500.0,0.0003863,9]
[355478334,1741198251136,-500.0,0.0003863,9]
[355478336,1741198251146,-5315.05,0.0003863,9]
[355478338,1741198251156,-500.0,0.0003863,9]
[355478340,1741198251165,-500.0,0.0003863,9]
[355478342,1741198251174,-500.0,0.0003863,9]
[355478344,1741198251184,-766.92,0.0003863,9]
[355478346,1741198251193,-500.0,0.0003863,9]
[355478347,1741198251203,-500.0,0.0003863,9]
[355478349,1741198251212,-1383.63,0.0003863,9]
[355478350,1741198251221,-553.76345684,0.0003863,9]
[355478351,1741198251232,-500.0,0.0003863,9]
[355478352,1741198251242,-500.0,0.0003863,9]
[355478353,1741198251253,-500.0,0.0003863,9]
[355478354,1741198251263,-500.0,0.0003863,9]
[355478355,1741198251272,-1023.28,0.0003863,9]
[355478356,1741198251282,-1395.66,0.0003863,9]
[355478357,1741198251291,-1583.94,0.0003863,9]
[355478358,1741198251301,-502.89825917,0.0003863,9]
[355478359,1741198251311,-506.45917342,0.0003863,9]
[355478360,1741198251320,-500.0,0.0003863,9]
[355478361,1741198251330,-500.0,0.0003863,9]
[355478362,1741198251339,-500.0,0.0003863,9]
[355478363,1741198251348,-500.0,0.0003863,9]
[355478364,1741198251357,-500.0,0.0003863,9]
[355478365,1741198251367,-1194.72,0.0003863,9]
[355478366,1741198251376,-500.0,0.0003863,9]
[355478367,1741198251386,-500.0,0.0003863,9]
[355478368,1741198251394,-500.0,0.0003863,9]
[355478369,1741198251404,-591.07,0.0003863,9]
[355478370,1741198251413,-842.41,0.0003863,9]
[355478371,1741198251421,-511.375547,0.0003863,9]
[355478372,1741198251430,-500.0,0.0003863,9]
[355478373,1741198251439,-698.6,0.0003863,9]
[355478374,1741198251448,-500.0,0.0003863,9]
[355478375,1741198251456,-500.0,0.0003863,9]
[355478376,1741198251465,-500.0,0.0003863,9]
[355478377,1741198251474,-500.0,0.0003863,9]
[355478378,1741198251483,-500.0,0.0003863,9]
[355478379,1741198251492,-1149.74,0.0003863,9]
[355478380,1741198251501,-500.0,0.0003863,9]
[355478381,1741198251510,-500.0,0.0003863,9]
[355478382,1741198251519,-500.0,0.0003863,9]
[355478383,1741198251528,-500.0,0.0003863,9]
[355478384,1741198251537,-500.0,0.0003863,9]
[355478385,1741198251547,-500.0,0.0003863,9]
[355478386,1741198251557,-500.0,0.0003863,9]
[355478387,1741198251566,-1637.36,0.0003863,9]
[355478388,1741198251576,-500.0,0.0003863,9]
[355478389,1741198251585,-500.0,0.0003863,9]
[355478390,1741198251597,-597.92,0.0003863,9]
[355478391,1741198251608,-626.52,0.0003863,9]
[355478392,1741198251620,-511.51299327,0.0003863,9]
[355478393,1741198251629,-4657.77,0.0003863,9]
[355478394,1741198251639,-509.07847413,0.0003863,9]
[355478395,1741198251648,-500.0,0.0003863,9]
[355478396,1741198251658,-1177.29,0.0003863,9]
[355478397,1741198251667,-500.0,0.0003863,9]
[355478398,1741198251676,-500.0,0.0003863,9]
[355478399,1741198251685,-500.0,0.0003863,9]
[355478400,1741198251695,-5173.81,0.0003863,9]
[355478401,1741198251703,-4975.94,0.0003863,9]
[355478402,1741198251712,-500.0,0.0003863,9]
[355478403,1741198251722,-500.0,0.0003863,9]
[355478404,1741198251731,-500.0,0.0003863,9]
[355478405,1741198251739,-500.0,0.0003863,9]
[355478406,1741198251748,-500.0,0.0003863,9]
[355478407,1741198251757,-505.54126349,0.0003863,9]
[355478408,1741198251766,-500.0,0.0003863,9]
[355478409,1741198251775,-500.0,0.0003863,9]
[355478410,1741198251784,-3080.81,0.0003863,9]
[355478411,1741198251793,-500.0,0.0003863,9]
[355478412,1741198251802,-500.0,0.0003863,9]
[355478413,1741198251810,-500.0,0.0003863,9]
[355478414,1741198251819,-500.0,0.0003863,9]
[355478415,1741198251828,-500.0,0.0003863,9]
[355478416,1741198251836,-500.0,0.0003863,9]
[355478417,1741198251846,-500.0,0.0003863,9]
[355478418,1741198251855,-500.0,0.0003863,9]
[355478419,1741198251866,-500.0,0.0003863,9]
[355478420,1741198251884,-500.0,0.0003863,9]
[355478421,1741198251898,-500.0,0.0003863,9]
[355478422,1741198251913,-242.9156976,0.0003863,9]
[355478423,1741198251926,-621.65,0.0003863,9]
[355478424,1741198251938,-500.0,0.0003863,9]
[355478425,1741198251952,-500.0,0.0003863,9]
[355478426,1741198251966,-1800.95,0.0003863,9]
[355478427,1741198251980,-500.0,0.0003863,9]
[355478428,1741198251993,-260.75671004,0.0003863,9]
[355478429,1741198252005,-150.0,0.00038673,5]
[355478430,1741198252019,-156.51490957,0.00038673,5]
[355478431,1741198252033,-500.452211,0.00038673,5]
[355478432,1741198252045,-500.0,0.00038673,5]
[355478433,1741198252057,-500.0,0.00038673,5]
[355478434,1741198252070,-160.37406782,0.00038903,30]
[355478435,1741198252082,-500.0,0.00038904,9]
[355478436,1741198252096,-500.0,0.00038904,9]
[355478437,1741198252108,-500.0,0.00038904,9]
[355478438,1741198252121,-500.0,0.00038904,9]
[355478439,1741198252131,-500.0,0.00038904,9]
[355478440,1741198252144,-500.0,0.00038904,9]
[355478441,1741198252155,-500.0,0.00038904,9]
[355478442,1741198252168,-500.0,0.00038904,9]
[355478443,1741198252181,-500.0,0.00038904,9]
[355478444,1741198252194,-500.0,0.00038904,9]
[355478445,1741198252208,-500.0,0.00038904,9]
[355478446,1741198252221,-517.44481918,0.00038904,9]
[355478447,1741198252235,-500.0,0.00038904,9]
[355478448,1741198252253,-243.73808741,0.00038904,9]
[355478449,1741198252271,-500.0,0.00038904,9]
[355478450,1741198252281,-500.0,0.00038904,9]
[355478451,1741198252292,-500.0,0.00038904,9]
[355478452,1741198252305,-500.0,0.00038904,9]
[355478453,1741198252322,-500.0,0.00038904,9]
[355478454,1741198252335,-500.0,0.00038904,9]
[355478455,1741198252345,-500.0,0.00038904,9]
[355478456,1741198252357,-938.23,0.00038904,9]
[355478457,1741198252369,-500.0,0.00038904,9]
[355478458,1741198252384,-500.0,0.00038904,9]
[355478459,1741198252396,-500.0,0.00038904,9]
[355478460,1741198252407,-763.18,0.00038904,9]
[355478461,1741198252419,-500.0,0.00038904,9]
[355478462,1741198252431,-500.0,0.00038904,9]
[355478463,1741198252445,-510.25,0.00038904,9]
[355478464,1741198252458,-500.0,0.00038904,9]
[355478465,1741198252472,-500.0,0.00038904,9]
[355478466,1741198252485,-500.0,0.00038904,9]
[355478467,1741198252497,-643.78308562,0.00038904,9]
[355478468,1741198252513,-500.0,0.00038904,9]
[355478469,1741198252525,-534.8,0.00038904,9]
[355478470,1741198252538,-507.27148912,0.00038904,9]
[355478471,1741198252550,-500.0,0.00038904,9]
[355478472,1741198252562,-500.0,0.00038904,9]
[355478473,1741198252574,-513.02348178,0.00038904,9]
[355478474,1741198252586,-502.39732747,0.00038904,9]
[355478475,1741198252598,-500.0,0.00038904,9]
[355478476,1741198252614,-181.69634052,0.00038904,9]
[355478477,1741198252627,-500.0,0.00038904,9]
[355478478,1741198252639,-680.8,0.00038904,9]
[355478479,1741198252652,-599.83,0.00038904,9]
[355478480,1741198252664,-500.0,0.00038904,9]
[355478481,1741198252676,-500.0,0.00038904,9]
[355478482,1741198252688,-500.0,0.00038904,9]
[355478483,1741198252701,-514.5,0.00038904,9]
[355478484,1741198252712,-500.0,0.00038904,9]
[355478485,1741198252724,-500.0,0.00038904,9]
[355478486,1741198252738,-500.0,0.00038904,9]
[355478487,1741198252750,-500.0,0.00038904,9]
[355478488,1741198252763,-500.0,0.00038904,9]
[355478489,1741198252780,-500.0,0.00038904,9]
[355478490,1741198252793,-500.0,0.00038904,9]
[355478491,1741198252814,-500.0,0.00038904,9]
[355478492,1741198252828,-383.57457039,0.00038904,9]
[355478493,1741198252839,-373.37,0.00038904,9]
[355478494,1741198252851,-887.0,0.00038904,9]
[355478495,1741198252862,-500.0,0.00038904,9]
[355478496,1741198252876,-500.0,0.00038904,9]
[355478497,1741198252887,-500.0,0.00038904,9]
[355478498,1741198252898,-500.0,0.00038904,9]
[355478499,1741198252910,-500.0,0.00038904,9]
[355478500,1741198252922,-632.68,0.00038904,9]
[355478501,1741198252933,-500.0,0.00038904,9]
[355478502,1741198252944,-500.0,0.00038904,9]
[355478503,1741198252955,-500.0,0.00038904,9]
[355478504,1741198252967,-500.0,0.00038904,9]
[355478505,1741198252979,-500.0,0.00038904,9]
[355478506,1741198252991,-500.0,0.00038904,9]
[355478507,1741198253002,-500.0,0.00038904,9]
[355478508,1741198253015,-500.0,0.00038904,9]
[355478509,1741198253027,-500.0,0.00038904,9]
[355478510,1741198253038,-500.0,0.00038904,9]
[355478511,1741198253050,-500.0,0.00038904,9]
[355478512,1741198253062,-500.0,0.00038904,9]
[355478513,1741198253074,-209.97664959,0.00038904,7]
[355478514,1741198253086,-500.0,0.00038904,9]
[355478515,1741198253098,-500.0,0.00038904,9]
[355478516,1741198253110,-500.0,0.00038904,9]
[355478517,1741198253125,-500.0,0.00038904,9]
[355478518,1741198253137,-500.0,0.00038904,9]
[355478519,1741198253149,-709.27,0.00038904,9]
[355478520,1741198253161,-725.22,0.00038904,9]
[355478521,1741198253174,-500.0,0.00038904,9]
[355478522,1741198253191,-500.0,0.00038904,9]
[355478523,1741198253202,-500.0,0.00038904,9]
[355478524,1741198253214,-500.0,0.00038904,9]
[355478525,1741198253225,-508.30604702,0.00038904,9]
[355478526,1741198253237,-500.0,0.00038904,9]
[355478527,1741198253247,-500.0,0.00038904,9]
[355478528,1741198253257,-500.0,0.00038904,9]
[355478529,1741198253267,-500.0,0.00038904,9]
[355478530,1741198253277,-634.78,0.00038904,9]
[355478531,1741198253286,-500.0,0.00038904,9]
[355478532,1741198253296,-500.0,0.00038904,9]
[355478533,1741198253305,-500.0,0.00038904,9]
[355478534,1741198253315,-500.0,0.00038904,9]
[355478535,1741198253324,-508.0926283,0.00038904,9]
[355478536,1741198253333,-500.0,0.00038904,9]
[355478537,1741198253343,-500.0,0.00038904,9]
[355478538,1741198253352,-510.92194778,0.00038904,9]
[355478539,1741198253361,-500.0,0.00038904,9]
[355478540,1741198253374,-500.0,0.00038904,9]
[355478541,1741198253384,-500.0,0.00038904,9]
[355478542,1741198253393,-1052.86,0.00038904,9]
[355478543,1741198253404,-500.0,0.00038904,9]
[355478544,1741198253414,-939.44,0.00038904,9]
[355478545,1741198253424,-500.0,0.00038904,9]
[355478546,1741198253434,-872.64,0.00038904,9]
[355478547,1741198253444,-500.0,0.00038904,9]
[355478548,1741198253453,-500.0,0.00038904,9]
[355478549,1741198253462,-500.0,0.00038904,9]
[355478550,1741198253472,-1655.0,0.00038904,9]
[355478551,1741198253482,-500.0,0.00038904,9]
[355478552,1741198253492,-500.0,0.00038904,9]
[355478553,1741198253501,-647.18,0.00038904,9]
[355478554,1741198253510,-500.0,0.00038904,9]
[355478555,1741198253520,-508.7325279,0.00038904,9]
[355478556,1741198253530,-500.0,0.00038904,9]
[355478557,1741198253540,-500.0,0.00038904,9]
[355478558,1741198253550,-508.15680173,0.00038904,9]
[355478559,1741198253560,-500.0,0.00038904,9]
[355478560,1741198253570,-583.25,0.00038904,9]
[355478561,1741198253819,-500.0,0.00038904,9]
[355478562,1741198253837,-500.0,0.00038904,9]
[355478563,1741198253849,-500.0,0.00038904,9]
[355478564,1741198253859,-500.0,0.00038904,9]
[355478565,1741198253871,-500.0,0.00038904,9]
[355478566,1741198253880,-500.0,0.00038904,9]
[355478567,1741198253890,-529.67,0.00038904,9]
[355478568,1741198253900,-500.0,0.00038904,9]
[355478569,1741198253909,-500.0,0.00038904,9]
[355478570,1741198253919,-507.70062428,0.00038904,9]
[355478571,1741198253928,-500.0,0.00038904,9]
[355478572,1741198253940,-957.17,0.00038904,9]
[355478573,1741198253949,-500.0,0.00038904,9]
[355478574,1741198253959,-798.05,0.00038904,9]
[355478575,1741198253968,-558.31,0.00038904,9]
[355478576,1741198253978,-500.0,0.00038904,9]
[355478577,1741198253988,-500.0,0.00038904,9]
[355478578,1741198253997,-500.0,0.00038904,9]
[355478579,1741198254006,-600.97,0.00038904,9]
[355478580,1741198254015,-500.0,0.00038904,9]
[355478581,1741198254026,-619.98,0.00038904,9]
[355478582,1741198254036,-500.0,0.00038904,9]
[355478583,1741198254046,-500.0,0.00038904,9]
[355478584,1741198254055,-500.0,0.00038904,9]
[355478585,1741198254065,-514.60794568,0.00038904,9]
[355478586,1741198254074,-500.0,0.00038904,9]
[355478587,1741198254084,-500.0,0.00038904,9]
[355478588,1741198254094,-1120.54,0.00038904,9]
[355478589,1741198254103,-500.0,0.00038904,9]
[355478590,1741198254113,-500.0,0.00038904,9]
[355478591,1741198254125,-500.0,0.00038904,9]
[355478592,1741198254135,-500.0,0.00038904,9]
[355478593,1741198254144,-500.0,0.00038904,9]
[355478594,1741198254154,-591.35,0.00038904,9]
[355478595,1741198254163,-500.0,0.00038904,9]
[355478596,1741198254172,-500.0,0.00038904,9]
[355478597,1741198254181,-500.0,0.00038904,9]
[355478598,1741198254191,-5494.18,0.00038904,9]
[355478599,1741198254200,-500.0,0.00038904,9]
[355478600,1741198254210,-500.0,0.00038904,9]
[355478601,1741198254220,-7784.72,0.00038904,9]
[355478602,1741198254229,-2091.63,0.00038904,9]
[355478603,1741198254239,-700.61,0.00038904,9]
[355478604,1741198254248,-2052.02,0.00038904,9]
[355478605,1741198254257,-89210.48,0.00038904,7]
[355478606,1741198254267,-500.0,0.00038904,9]
[355478607,1741198254276,-500.0,0.00038904,9]
[355478608,1741198254285,-500.0,0.00038904,9]
[355478609,1741198254295,-500.0,0.00038904,9]
[355478610,1741198254304,-1188.58,0.00038904,9]
[355478611,1741198254313,-506.94281823,0.00038904,9]
[355478612,1741198254323,-500.0,0.00038904,9]
[355478613,1741198254332,-840.1,0.00038904,9]
[355478614,1741198254341,-434.97368168,0.00038904,9]
[355478615,1741198254351,-500.0,0.00038904,9]
[355478616,1741198254360,-517.03129976,0.00038904,9]
[355478617,1741198254373,-500.0,0.00038904,9]
[355478618,1741198254382,-500.0,0.00038904,9]
[355478619,1741198254392,-1455.61,0.00038904,9]
[355478620,1741198254401,-500.0,0.00038904,9]
[355478621,1741198254410,-3679.83,0.00038904,9]
[355478622,1741198254418,-150.0,0.00038904,2]
[355478623,1741198254428,-500.0,0.00038904,9]
[355478624,1741198254436,-500.0,0.00038904,9]
[355478625,1741198254445,-500.0,0.00038904,9]
[355478626,1741198254454,-500.0,0.00038904,9]
[355478627,1741198254464,-508.72228827,0.00038904,9]
[355478628,1741198254473,-500.0,0.00038904,9]
[355478629,1741198254482,-520.83,0.00038904,9]
[355478630,1741198254491,-752.46,0.00038904,9]
[355478631,1741198254500,-500.0,0.00038904,9]
[355478632,1741198254509,-819.0,0.00038904,9]
[355478633,1741198254518,-619.33,0.00038904,9]
[355478634,1741198254528,-500.0,0.00038904,9]
[355478635,1741198254537,-500.0,0.00038904,9]
[355478636,1741198254546,-783.5,0.00038904,9]
[355478637,1741198254555,-500.0,0.00038904,9]
[355478638,1741198254564,-500.0,0.00038904,9]
[355478639,1741198254573,-727.09,0.00038904,9]
[355478640,1741198254582,-4006.43,0.00038904,9]
[355478641,1741198254591,-758.44,0.00038904,9]
[355478642,1741198254601,-1163.07,0.00038904,9]
[355478643,1741198254612,-505.86378254,0.00038904,9]
[355478644,1741198254623,-1213.85,0.00038904,9]
[355478645,1741198254632,-500.0,0.00038904,9]
[355478646,1741198254641,-500.0,0.00038904,9]
[355478647,1741198254651,-975.73,0.00038904,9]
[355478648,1741198254660,-500.0,0.00038904,9]
[355478649,1741198254669,-500.0,0.00038904,9]
[355478650,1741198254680,-1668.8,0.00038904,9]
[355478651,1741198254689,-500.0,0.00038904,9]
[355478652,1741198254699,-500.0,0.00038904,9]
[355478653,1741198254708,-500.0,0.00038904,9]
[355478654,1741198254718,-750.41,0.00038904,9]
[355478655,1741198254728,-716.34,0.00038904,9]
[355478656,1741198254738,-500.0,0.00038904,9]
[355478657,1741198254749,-500.0,0.00038904,9]
[355478658,1741198254758,-500.0,0.00038904,9]
[355478659,1741198254767,-500.0,0.00038904,9]
[355478660,1741198254777,-500.0,0.00038904,9]
[355478661,1741198254787,-12795.82,0.00038904,9]
[355478662,1741198254797,-500.0,0.00038904,9]
[355478663,1741198254807,-508.48975147,0.00038904,9]
[355478664,1741198254817,-500.0,0.00038904,9]
[355478665,1741198254827,-500.0,0.00038904,9]
[355478666,1741198254837,-500.0,0.00038904,9]
[355478667,1741198254847,-500.0,0.00038904,9]
[355478668,1741198254856,-500.0,0.00038904,9]
[355478669,1741198254866,-500.0,0.00038904,9]
[355478670,1741198254877,-10119.18,0.00038904,9]
[355478671,1741198254887,-2441.88,0.00038904,9]
[355478672,1741198254896,-524.27,0.00038904,9]
[355478673,1741198254906,-500.0,0.00038904,9]
[355478674,1741198254916,-514.12472424,0.00038904,9]
[355478675,1741198254924,-500.0,0.00038904,9]
[355478676,1741198254935,-1356.54,0.00038904,9]
[355478677,1741198254945,-500.0,0.00038904,9]
[355478678,1741198254955,-500.0,0.00038904,9]
[355478679,1741198254965,-507.21359382,0.00038904,9]
[355478680,1741198254975,-500.0,0.00038904,9]
[355478681,1741198254984,-500.0,0.00038904,9]
[355478682,1741198254993,-5315.05,0.00038904,9]
[355478683,1741198255002,-527.41102378,0.00038904,9]
[355478684,1741198255012,-500.0,0.00038904,9]
[355478685,1741198255021,-500.0,0.00038904,9]
[355478686,1741198255030,-766.92,0.00038904,9]
[355478687,1741198255039,-500.0,0.00038904,9]
[355478688,1741198255049,-500.0,0.00038904,9]
[355478689,1741198255058,-1383.63,0.00038904,9]
[355478690,1741198255067,-500.0,0.00038904,9]
[355478691,1741198255077,-500.0,0.00038904,9]
[355478692,1741198255086,-500.0,0.00038904,9]
[355478693,1741198255095,-500.0,0.00038904,9]
[355478694,1741198255104,-1023.28,0.00038904,9]
[355478695,1741198255115,-1395.66,0.00038904,9]
[355478696,1741198255126,-1583.94,0.00038904,9]
[355478697,1741198255135,-500.0,0.00038904,9]
[355478698,1741198255144,-500.0,0.00038904,9]
[355478699,1741198255154,-500.0,0.00038904,9]
[355478700,1741198255164,-500.0,0.00038904,9]
[355478701,1741198255174,-500.0,0.00038904,9]
[355478702,1741198255184,-1194.72,0.00038904,9]
[355478703,1741198255194,-500.0,0.00038904,9]
[355478704,1741198255205,-500.0,0.00038904,9]
[355478705,1741198255215,-514.14494226,0.00038904,9]
[355478706,1741198255225,-591.07,0.00038904,9]
[355478707,1741198255234,-842.41,0.00038904,9]
[355478708,1741198255243,-507.90583032,0.00038904,9]
[355478709,1741198255253,-698.6,0.00038904,9]
[355478710,1741198255262,-185.67534741,0.00038904,9]
[355478711,1741198255271,-500.0,0.00038904,9]
[355478712,1741198255281,-500.0,0.00038904,9]
[355478713,1741198255290,-500.0,0.00038904,9]
[355478714,1741198255300,-500.0,0.00038904,9]
[355478715,1741198255309,-1149.74,0.00038904,9]
[355478716,1741198255319,-500.0,0.00038904,9]
[355478717,1741198255328,-500.0,0.00038904,9]
[355478718,1741198255337,-500.0,0.00038904,9]
[355478719,1741198255346,-500.0,0.00038904,9]
[355478720,1741198255355,-500.0,0.00038904,9]
[355478721,1741198255364,-500.0,0.00038904,9]
[355478722,1741198255375,-500.0,0.00038904,9]
[355478723,1741198255384,-500.0,0.00038904,9]
[355478724,1741198255393,-1637.36,0.00038904,9]
[355478725,1741198255403,-500.0,0.00038904,9]
[355478726,1741198255412,-597.92,0.00038904,9]
[355478727,1741198255421,-626.52,0.00038904,9]
[355478728,1741198255431,-4657.77,0.00038904,9]
[355478729,1741198255440,-500.0,0.00038904,9]
[355478730,1741198255450,-1177.29,0.00038904,9]
[355478731,1741198255459,-500.0,0.00038904,9]
[355478732,1741198255468,-500.0,0.00038904,9]
[355478733,1741198255478,-500.0,0.00038904,9]
[355478734,1741198255487,-5173.81,0.00038904,9]
[355478735,1741198255497,-4975.94,0.00038904,9]
[355478736,1741198255507,-500.0,0.00038904,9]
[355478737,1741198255516,-500.0,0.00038904,9]
[355478738,1741198255526,-500.0,0.00038904,9]
[355478739,1741198255536,-500.0,0.00038904,9]
[355478740,1741198255545,-500.0,0.00038904,9]
[355478741,1741198255554,-500.0,0.00038904,9]
[355478742,1741198255563,-3080.81,0.00038904,9]
[355478743,1741198255572,-500.0,0.00038904,9]
[355478744,1741198255582,-500.0,0.00038904,9]
[355478745,1741198255592,-500.0,0.00038904,9]
[355478746,1741198255605,-500.0,0.00038904,9]
[355478747,1741198255615,-500.0,0.00038904,9]
[355478748,1741198255626,-500.0,0.00038904,9]
[355478749,1741198255636,-500.0,0.00038904,9]
[355478750,1741198255646,-153.97857876,0.00038904,9]
[355478751,1741198255655,-500.0,0.00038904,9]
[355478752,1741198255665,-500.0,0.00038904,9]
[355478753,1741198255674,-500.0,0.00038904,9]
[355478754,1741198255685,-500.0,0.00038904,9]
[355478755,1741198255694,-530.2458399,0.00038904,9]
[355478756,1741198255703,-500.0,0.00038904,9]
[355478757,1741198255713,-1800.95,0.00038904,9]
[355478758,1741198255722,-555.85331884,0.00038931,9]
[355478759,1741198255733,-500.0,0.00038931,9]
[355478760,1741198255742,-500.0,0.00038931,9]
[355478761,1741198255752,-500.0,0.00038931,9]
[355478762,1741198255761,-500.0,0.00038931,9]
[355478763,1741198255771,-1421.29140937,0.0003895,2]
[355478764,1741198255781,-500.0,0.00038959,9]
[355478765,1741198255790,-500.0,0.00038959,9]
[355478766,1741198255799,-500.0,0.00038959,9]
[355478767,1741198255809,-500.0,0.00038959,9]
[355478768,1741198255818,-500.0,0.00038986,9]
[355478769,1741198255827,-500.0,0.00038986,9]
[355478770,1741198255837,-500.0,0.00038986,9]
[355478771,1741198255846,-500.0,0.00038986,9]
[355478772,1741198255856,-840.36215176,0.00039,120]
[355478773,1741198255865,-587.627812,0.00039014,9]
[355478774,1741198255877,-500.0,0.00039014,9]
[355478775,1741198255886,-500.0,0.00039014,9]
[355478776,1741198255896,-500.0,0.00039014,9]
[355478777,1741198255905,-967.09694383,0.00039041,9]
[355478778,1741198255915,-500.0,0.00039041,9]
[355478779,1741198255924,-500.0,0.00039041,9]
[355478780,1741198255933,-500.0,0.00039068,9]
[355478781,1741198255943,-500.0,0.00039068,9]
[355478782,1741198255952,-4735.29315413,0.0003909,7]
[355478783,1741198255962,-500.0,0.00039096,9]
[355478784,1741198255971,-500.0,0.00039096,9]
[355478785,1741198255981,-150.0,0.000391,120]
[355478786,1741198255990,-500.0,0.00039123,9]
[355478787,1741198256000,-500.0,0.00039123,9]
[355478788,1741198256009,-500.0,0.00039151,9]
[355478789,1741198256019,-500.0,0.00039151,9]
[355478790,1741198256028,-500.0,0.00039178,9]